Cogmind - Beta 12 @@@ ROGUE MODE // 2023.05.27 @ 19:30:54 Player: snowphil Result: Destroyed by D-53 Grenadier with Mini Grenade Launcher Performance ------------- Evolutions (0) 0 Regions Visited (2) 400 Robots Destroyed (19) 95 Value Destroyed (318) 318 Prototype IDs (4) 80 Alien Tech Used (0) 0 Bonus (-171) -171 TOTAL SCORE: 722 Bonus ------- Friendly Fire -171 Cogmind --------- Core Integrity 0/250 Matter 66/300 Energy 96/100 System Corruption 0% Temperature Cool (2) Movement Walking (120) Location -10/Mines Parts ------- > --- POWER (1) -------- (None) > --- PROPULSION (2) --- Aluminum Leg Aluminum Leg > --- UTILITY (2) ------ Medium Storage Unit > --- WEAPON (2) ------- Bore Cannon > --- INVENTORY (10) --- Ion Engine Aluminum Leg Aluminum Leg Sensor Array Splice Drone Bay (6/6) Improved Medium Laser Improved Medium Laser Improved Medium Laser Mace Peak State ------------ > --- POWER ------------ Ion Engine > --- PROPULSION ------- Aluminum Leg Aluminum Leg > --- UTILITY ---------- Medium Storage Unit Splice Drone Bay > --- WEAPON ----------- Improved Medium Laser Mace > --- INVENTORY -------- Ion Engine Aluminum Leg Aluminum Leg Sensor Array Improved Medium Laser Improved Medium Laser Light Cannon Light Cannon Grenade Launcher Grenade Launcher [Rating: 17] Favorites ----------- Power Ion Engine Engine Ion Engine Propulsion Aluminum Leg Leg Aluminum Leg Utility Medium Storage Unit Device Splice Drone Bay Storage Medium Storage Unit Protection Light Armor Plating Weapon Improved Medium Laser Energy Gun Improved Medium Laser Ballistic Gun Light Assault Rifle Ballistic Cannon Light Cannon Launcher Grenade Launcher Impact Weapon Mace Build | -11 -10 -10 ------- Run | Jun Mat Min Slots Evolved . | . . . Power . | . . . Propulsion . | . . . Utility . | . . . Weapon . | . . . Parts Attached 29 | 7 14 8 Power 3 | 2 1 . Engine 3 | 2 1 . Core . | . . . Reactor . | . . . Propulsion 3 | 2 1 . Treads . | . . . Leg 3 | 2 1 . Wheel . | . . . Hover . | . . . Flight . | . . . Utility 6 | 1 2 3 Device 2 | . . 2 Storage 2 | 1 1 . Processor . | . . . Hackware . | . . . Protection 2 | . 1 1 Artifact . | . . . Weapon 17 | 2 10 5 Energy Gun 4 | 1 3 . Energy Cannon . | . . . Ballistic Gun 1 | 1 . . Ballistic Cannon 6 | . 3 3 Launcher 5 | . 3 2 Special Weapon . | . . . Impact Weapon 1 | . 1 . Slashing Weapon . | . . . Piercing Weapon . | . . . Special Melee Weapon . | . . . Unidentified Prototypes 2 | . 1 1 Parts Lost 4 | . . 4 Power 1 | . . 1 Propulsion . | . . . Utility 1 | . . 1 Weapon 2 | . . 2 Highest Loss Streak 4 | . . 4 To Critical Strikes . | . . . Average Slot Usage (%) 95 | . 94 98 Engine 13 | . 14 13 Leg 28 | . 28 28 Device 1 | . . 4 Storage 14 | . 14 14 Protection 8 | . 8 8 Energy Gun 12 | . 12 12 Ballistic Cannon 8 | . 8 7 Launcher 1 | . 1 1 Impact Weapon 4 | . 3 5 Naked Turns . | . . . Heaviest Build 30 | 13 24 30 Greatest Support 20 | 20 20 20 Greatest Overweight (x) 1 | 1 1 1 Average Overweight (x) . | . . . Largest Inventory Capacity 10 | 8 10 10 Average Capacity 9 | 6 9 10 Most Carried 10 | 5 10 10 Average Carried 9 | 1 9 9 Final Capacity 10 | 8 10 10 Final Carried 10 | 1 10 9 Class Distribution -------------------- 100% | Mutant Dominant Class ---------------- Mutant | -10/Materials Mutant | -10/Mines Resources | -11 -10 -10 ----------- Run | Jun Mat Min Matter Collected 510 | 244 218 48 Remotely . | . . . Salvage Created 276 | . 203 73 Parts 27 | . 15 12 Haulers Intercepted . | . . . Recyclers Shooed . | . . . Parts Field Recycled . | . . . Retrieved Matter . | . . . Parts Self-Destructed . | . . . Prevented . | . . . Kills | -11 -10 -10 ------- Run | Jun Mat Min Combat Hostiles Destroyed 22 | . 13 9 Guns 1 | . 1 . Cannons 5 | . 5 . AOE 16 | . 7 9 Classes Destroyed 9 | . 3 6 Worker 1 | . . 1 Builder 1 | . . 1 Tunneler 1 | . . 1 Operator 1 | . 1 . Swarmer 9 | . 9 . Grunt 4 | . 4 . Demolisher 1 | . . 1 Assembled 8 | . . 8 Guerrilla 1 | . . 1 Best Kill Streak 12 | . 3 12 Combat Bots Only 9 | . 3 9 Max Kills in Single Turn 4 | . 2 4 Gunslinging . | . . . Exploded 4 | . 2 4 Melee . | . . . Uniques/NPCs Destroyed . | . . . Combat | -11 -10 -10 -------- Run | Jun Mat Min Damage Taken 930 | . 422 508 Core 255 | . 122 133 Absorbed by Shields . | . . . Regen/Repaired (Parts) 40 | . 40 . Core Remaining (%) 100 | 100 . . Volleys Fired 41 | . 34 7 Largest 2 | . 2 2 Hottest 91 | . 91 60 Shots Fired 68 | . 57 11 Gun 25 | . 25 . Cannon 26 | . 26 . Launcher 17 | . 6 11 Special . | . . . Kinetic 26 | . 26 . Thermal 25 | . 25 . Explosive 17 | . 6 11 Electromagnetic . | . . . Robot Hit Streak 6 | . 6 2 Robot Miss Streak 2 | . 2 2 Penetration Max . | . . . Secondary Targets . | . . . Shots Hit Robots 36 | . 31 5 Core Hits 39 | . 16 23 Critical Kills . | . . . Critical Parts Destroyed . | . . . Critical Strikes 2 | . 2 . Burn 1 | . 1 . Blast 1 | . 1 . Melee Attacks 6 | . 6 . Impact 6 | . 6 . Slashing . | . . . Piercing . | . . . Sneak Attacks . | . . . Combat Hostiles . | . . . Follow-up Attacks . | . . . Damage Inflicted 1841 | . 945 896 Guns 222 | . 222 . Cannons 253 | . 253 . Explosions 1366 | . 470 896 Melee . | . . . Ramming . | . . . Kinetic 253 | . 253 . Thermal 369 | . 222 147 Explosive 1219 | . 470 749 Electromagnetic . | . . . Impact . | . . . Slashing . | . . . Piercing . | . . . Highest Corruption . | . . . Average Corruption . | . . . Corruption Purged . | . . . Corruption Blocked . | . . . Overload Shots . | . . . Overflow Damage 46 | . 35 11 Projectiles . | . . . Explosions 46 | . 35 11 Melee . | . . . Knockbacks 7 | . 7 . Impact . | . . . Kinetic 6 | . 6 . Secondary 1 | . 1 . Self-Inflicted Damage 50 | . 50 . Shots 2 | . 2 . Rammed . | . . . Targets Rammed . | . . . Kicked . | . . . Crushed . | . . . Highest Temperature 246 | . 246 36 Average Temperature 79 | . 89 21 Received Heat Transfer 134 | . 114 20 Effects 1 | . 1 . Energy Bleed 1 | . 1 . Siege Activations . | . . . Robots Corrupted . | . . . Combat Hostiles . | . . . Parts Fried . | . . . Impact Corruptions . | . . . Robots Melted . | . . . Combat Hostiles . | . . . Parts Melted . | . . . Heat Transferred 742 | . 592 150 Parts Sabotaged . | . . . Parts Stolen . | . . . Parts Stripped . | . . . Power Chain Reactions . | . . . Missiles Intercepted . | . . . Alert | -11 -10 -10 ------- Run | Jun Mat Min Peak Influence 268 | . 268 115 Initial 4 | . . 4 Average 100 | . 125 33 Maximum Alert Level 1 | . 1 . Low Security (%) 88 | 100 83 100 Level 1 11 | . 16 . Level 2 . | . . . Level 3 . | . . . Level 4 . | . . . Level 5 . | . . . High Security . | . . . Max Security . | . . . Squads Dispatched 1 | . 1 . Investigation . | . . . Extermination . | . . . Reinforcement 1 | . 1 . Assault . | . . . Garrison . | . . . Intercept . | . . . Searches Triggered . | . . . Construction Impeded . | . . . Haulers Reinforced . | . . . Active Scanning Responses . | . . . Cargo Convoy Interrupts . | . . . Stealth | -11 -10 -10 --------- Run | Jun Mat Min Distress Signals 1 | . 1 . Communications Jammed . | . . . Distress Signals . | . . . Times Spotted 48 | . 27 21 Peak Tracking Total 14 | . 4 14 Tactical Retreats 5 | . 1 4 Traps | -11 -10 -10 ------- Run | Jun Mat Min Traps Triggered . | . . . Indirectly . | . . . Trap Hack Attempts . | . . . Triggered . | . . . Disarmed . | . . . Reprogrammed . | . . . Reused . | . . . Traps Extracted . | . . . Installed . | . . . Triggered . | . . . Machines | -11 -10 -10 ---------- Run | Jun Mat Min Machines Disabled 1 | . . 1 Max in Single Turn 1 | . . 1 Machines Repaired . | . . . Machines Sabotaged . | . . . Overloaded Fab Kills . | . . . Hacking | -11 -10 -10 --------- Run | Jun Mat Min Machines Accessed 10 | . 9 1 Terminals 7 | . 7 . Fabricators . | . . . Repair Stations 1 | . 1 . Recycling Units 1 | . 1 . Scanalyzers . | . . . Garrison Access . | . . . Total Hacks 35 | . 34 1 Successful 15 | . 14 1 Failed 20 | . 20 . Catastrophic 2 | . 2 . Database Lockouts . | . . . Manual 12 | . 12 . Terminals 27 | . 27 . Fabricators . | . . . Repair Stations 4 | . 4 . Recycling Units 3 | . 3 . Scanalyzers . | . . . Garrison Access . | . . . Terminal Hacks 9 | . 8 1 Prototype ID Bank 1 | . 1 . Open Door 1 | . . 1 Branch Access Points 1 | . 1 . Alert Level 1 | . 1 . Locate Traps 3 | . 3 . Hauler Manifests 1 | . 1 . Registered Components 1 | . 1 . Fabricator Hacks . | . . . Repair Station Hacks 3 | . 3 . Scan Component 1 | . 1 . Repair 1 | . 1 . Refit 1 | . 1 . Recycling Unit Hacks . | . . . Scanalyzer . | . . . Garrison Access Hacks . | . . . Unauthorized Hacks 3 | . 3 . Terminals 2 | . 2 . Botnet 2 | . 2 . Fabricators . | . . . Repair Stations . | . . . Recycling Units 1 | . 1 . Reject 1 | . 1 . Scanalyzers . | . . . Garrison Access . | . . . Data Cores Recovered 1 | . 1 . Used . | . . . Hacking Detections 8 | . 8 . Full Trace Events 1 | . 1 . Feedback Events . | . . . Feedback Blocked . | . . . Robot Schematics Acquired . | . . . Robots Built . | . . . Authchips . | . . . Time . | . . . Total Robot Build Rating . | . . . Part Schematics Acquired . | . . . Parts Built . | . . . Authchips . | . . . Time . | . . . Total Part Build Rating . | . . . Parts Repaired 1 | . 1 . Time 26 | . 26 . Parts Recycled . | . . . Recycled Matter . | . . . Retrieved Matter . | . . . Retrieved Components . | . . . Parts Scanalyzed . | . . . Part Schematics Acquired . | . . . Parts Damaged . | . . . Bothacking | -11 -10 -10 ------------ Run | Jun Mat Min Used RIF Installer . | . . . Robots Hacked . | . . . Non-combat . | . . . Combat . | . . . Robot Hacks Applied . | . . . Relay Couplers Released . | . . . Fabnet Peak Effective % . | . . . Robots Rewired . | . . . Allies Hacked . | . . . Hacks Repelled . | . . . Allies | -11 -10 -10 -------- Run | Jun Mat Min Total Allies . | . . . Largest Group . | . . . Highest-Rated Group . | . . . Highest-Rated Ally . | . . . Total Orders 7 | . . 7 ROAM 3 | . . 3 EXPLORE 4 | . . 4 Ally Attacks 6 | . . 6 Total Damage 39 | . . 39 Kills . | . . . Allies Corrupted . | . . . Allies Melted . | . . . Intel | -11 -10 -10 ------- Run | Jun Mat Min Robot Analysis Total . | . . . Derelict Logs Recovered 2 | . . 2 Drone Launches 6 | . . 6 Drone Recoveries 6 | . . 6 Exploration | -11 -10 -10 ------------- Run | Jun Mat Min Turns Passed 1811 | 61 1338 412 Spaces Moved 785 | 42 612 131 Core 19 | 19 . . Treads . | . . . Legs 766 | 23 612 131 Wheels . | . . . Hover . | . . . Flight . | . . . Fastest Speed 50 | 50 120 120 Average Speed 177 | 91 182 185 Slowest Speed 190 | 120 190 190 Overloaded Moves . | . . . Propulsion Burnouts . | . . . Robots Hopped . | . . . Cave-ins Triggered . | . . . Exploration Rate (%) 62 | 3 92 91 Regions Visited 2 Branch Regions 1 Pre-discovered Areas 1 | . . 1 Known Exits Taken 1 | . 1 . Unknown Exits Taken 1 | 1 . . Scrap Searched . | . . . Spaces Dug 6 | . 6 . Terrain Destroyed 92 | . 37 55 Melee 6 | . 6 . Projectile . | . . . AOE 86 | . 31 55 Terrain Rammed . | . . . Walls Destroyed . | . . . Machines Disabled . | . . . Actions | -11 -10 -10 --------- Run | Jun Mat Min Total 1120 | 64 768 288 Wait 222 | 10 75 137 Move 783 | 41 611 131 Hop . | . . . Pick Up 24 | 5 18 1 Fast Attach 4 | 2 . 2 Attach 7 | 4 2 1 Detach . | . . . Swap 18 | 1 12 5 Drop 15 | 1 10 4 Fire 41 | . 34 7 Melee 6 | . 6 . Ram . | . . . Kick . | . . . Crush . | . . . Escape Stasis . | . . . Rewire . | . . . Trap . | . . . Miscellaneous . | . . . Route ------- -11/Junkyard -10/Materials (discovered 3 exits: [*Mat x2] / *Min) -10/Mines (discovered 2 exits: [*Mat x2]) History --------- Turn | Location | Event 4 | -11/Junkyard | Discovered new exit (range 16) 62 | -11/Junkyard | Entered Materials 306 | -10/Materials | Build established: Mutant 454 | -10/Materials | Discovered new exit (range 14) 583 | -10/Materials | Repaired Ion Engine 733 | -10/Materials | Identified exit to Mines 752 | -10/Materials | Discovered new exit (range 9) 1229 | -10/Materials | Discovered new exit (range 15) 1400 | -10/Materials | Entered Mines 1413 | -10/Mines | Found the Drone Emporium 1421 | -10/Mines | Found Prototype Device 1421 | -10/Mines | Identified Splice Drone Bay 1430 | -10/Mines | Discovered new exit (range 14) 1521 | -10/Mines | Discovered new exit (range 62) 1595 | -10/Mines | Learned location of Storage (-9) 1614 | -10/Mines | A weapon hastily lodged in a ceiling crevice suddenly fell to the ground 1770 | -10/Mines | Assembled infested the area 1775 | -10/Mines | Assisted by a Guerilla fighting off Assembled 1785 | -10/Mines | Core integrity fell below 50% 1807 | -10/Mines | Core integrity fell below 20% 1812 | -10/Mines | Destroyed by D-53 Grenadier with Mini Grenade Launcher Last Messages --------------- 01795_ T-07 Excavator destroyed. 01796_ HV Slug penetrates as-08565. 01796_ as-08565 suffers critical hit (Destroy). 01796_ as-08565 destroyed. 01798_ K-01 Serf collects debris. 01798_ as-67290 destroyed. 01798_ HV Slug penetrates as-30487. 01798_ as-30487 suffers critical hit (Destroy). 01798_ as-30487 knocked back. 01799_ K-01 Serf destroyed. 01799_ B1-LFC(h) destroyed. 01800_ Grenade Launcher destroyed. 01801_ The unstable cave ceiling collapses. 01802_ as-60722 destroyed. 01804_ Lgt. Armor Plating destroyed. 01804_ Ion Engine destroyed. 01804_ as-83344 destroyed. 01805_ The unstable cave ceiling collapses. 01810_ R-06 Scavenger destroyed. 01810_ Acquired 48 matter. Map ----- +----------------------------------------------------+ | ??????? ??" ??????????????????????????????? | | ??????? ? ??????????????????????????????? | | ??????? ? ??????????????????????????????? | | ??? ??" #?????????????????????????????? | | ??# ?"" < #???????????????????????#?????? | | ??# ? #????###???????????????## ????? | | ??# """ """ #????# ?????????##????? ##??? | | ??# """ """ #????# #?????????# ##??? ??? | | ??# """ """ #????# #?????????# #???# ##? | | ??# #????# #??????????# #?## ## | | ??# """ """ ###### #??????????# ## # | | ??# """ """ #???????????# | | ??# """ """ ###### #?????????????# | | ??# #????# ##########??????# | | ??# #????# #??????#### | | ??##### #######?#### ##### #?????????## | | ??????# ## ##???# #???# #?????????## | | ??###?# # #???# #???# ###???##### | | ?## ## #???# #???# #??## # | | ?# ##???# #???### #??# ## | | ?# ##????# #?????# #??# ##? | | ?# #?????# #?????# #??# ###?? | | ?## ### #?##### #????## #### ##???? | | ??###??### ##?# #????# ##???? | | ?????????## #### #????# ### ####? | | ?????????## ## =@ #????# #?## ## | | ????????## ] #???# #??# # | | ???????## ###?# #??## # | | ??????## ### #???# ## ## | | ?????## a # #???# ### #? | | ?????# % ! # #???# #?# #? | | ?????# ## % # #???# #?# #? | | ?????# ### d #???# #?# #? | | ?????# ### #???# #?# #? | | ????## ## ## #???# #?# #? | | ????# ### # ##### #?# #? | | ????# ## ### =% #?# #? | | ????# ### $ *% ##?# #? | | ????## #?## ## #?# #? | | ?????# ##??# # ### #? | | ?????# ##### # ## ## #? | | ?????## # # ## #? | | ??????## ## # ### ## | | ???????## ### ######### #?## # | | ????????####?# #???????? ## #??## | | ???#####?????# #??######## %# ##???## | | ??## #????# #??# %% #????# | | ??# #???# ##?# #????# | | ??# #### ### ##### #????## | | ??# ## #???## ##?????# | +----------------------------------------------------+ Best States ------------- Heat Dissipation 25 Energy Generation 10 Energy Capacity 250 Matter Stores 274 Matter Capacity 300 Sight Range 16 Terrain Scan Density 10 Armor Coverage 150 Evasion (%) 55 Item Schematics ----------------- None Robot Schematics ------------------ None Fabricated ------------ Nothing Alien Tech Used ----------------- None Achievements -------------- Factory Defaults Challenges ------------ None Game ------ Seed SwordLayeredMatrix Manual? 0 Play Time 00:27:43 Cumulative 113.2 hours Start 2023.05.27 @ 18:05:37 End 2023.05.27 @ 19:30:54 Sessions 2 Manual Loads 0 Difficulty Rogue Special Mode None Game No. 16 Rogue 14 Adventurer 0 Explorer 2 Win Type - Total 3 Types 0/0/0/3/0/0/0/0/0 Lore% 31 Gallery% 36 Achievement% 46 Wizard Run 0 Options --------- ASCII 0 Keyboard 0 Movement Mouse Keybinds 0 Fullscreen 1 Font 18/SmallcapsGlow Map View 70x50 Tactical HUD 1 Map Filters NONE Filters NONE Steam 1 RUN: 724579db-6305-45ff-b397-c8a4514dd99e